fUSD/lending_fUSD_20260329
["ID","MTS","AMOUNT","RATE_DAILY","PERIOD"]
[419010118,1774749033228,-516.68948364,0.00011499,2]
[419010119,1774749033237,-500.0,0.00011499,2]
[419010120,1774749033246,-500.0,0.00011499,2]
[419010121,1774749033255,-500.0,0.00011499,2]
[419010122,1774749033264,-500.0,0.00011499,2]
[419010123,1774749033273,-500.0,0.00011499,2]
[419010124,1774749033282,-500.0,0.00011499,2]
[419010125,1774749033291,-500.0,0.00011499,2]
[419010126,1774749033301,-200.0,0.00011499,2]
[419010127,1774749033311,-500.0,0.00011499,2]
[419010128,1774749033320,-5224.25,0.000115,2]
[419010129,1774749033329,-22936.37,0.000115,2]
[419010130,1774749033340,-5058.46,0.000115,2]
[419010131,1774749033349,-150.99,0.000115,2]
[419010132,1774749033359,-2432.37963779,0.000115,2]
[419010133,1774749033369,-1500.0,0.000115,2]
[419010134,1774749033379,-499.99,0.00011509,2]
[419010135,1774749033388,-999.99,0.00011509,2]
[419010136,1774749033398,-150.99,0.00011509,2]
[419010137,1774749033407,-9999.99,0.00011509,2]
[419010138,1774749033416,-14101.42,0.00011509,2]
[419010139,1774749033425,-458.41,0.00011509,2]
[419010140,1774749033435,-4566.50840311,0.00011509,2]
[419010141,1774749033444,-1003.31122739,0.00011509,2]
[419010142,1774749033453,-200.0,0.00011512,2]
[419010143,1774749033462,-151.0,0.00011512,2]
[419010144,1774749033471,-151.0,0.00011512,2]
[419010145,1774749033480,-151.0,0.00011512,2]
[419010146,1774749033489,-151.0,0.00011512,2]
[419010147,1774749033499,-151.0,0.00011512,2]
[419010148,1774749033508,-151.0,0.00011512,2]
[419010149,1774749033517,-151.0,0.00011512,2]
[419010150,1774749033527,-151.0,0.00011512,2]
[419010151,1774749033535,-151.0,0.00011512,2]
[419010152,1774749033544,-151.0,0.00011512,2]
[419010153,1774749033554,-151.0,0.00011512,2]
[419010154,1774749033563,-738.16,0.00011512,2]
[419010155,1774749033572,-500.0,0.00011512,2]
[419010156,1774749033582,-151.0,0.00011516,2]
[419010157,1774749033592,-1751.3871447,0.00011518,2]
[419010158,1774749033601,-586.1110983,0.00011519,2]
[419010159,1774749033611,-978.4269436,0.00011519,2]
[419010160,1774749033622,-6053.4404014,0.00011519,2]
[419010161,1774749033632,-3576.4048144,0.00011519,2]
[419010162,1774749033641,-11534.8977053,0.00011519,2]
[419010163,1774749033650,-13184.1056629,0.00011519,2]
[419010164,1774749033660,-4298.3698949,0.00011519,2]
[419010165,1774749033669,-7323.34651923,0.00011519,2]
[419010170,1774749038095,-1420.30007778,0.00011519,2]
[419010171,1774749038148,-1667.04512049,0.00011519,2]
[419010172,1774749038202,-340.50252739,0.00011519,2]
[419010173,1774749038413,-446.26987052,0.00011519,2]
[419010174,1774749038424,-793.66649967,0.00011519,2]
[419010175,1774749038469,-278921.81596362,0.00011519,2]
[419010176,1774749038478,-166.66,0.00011551,2]
[419010177,1774749038487,-500.0,0.00011573,2]
[419010178,1774749038496,-500.0,0.00011573,2]
[419010179,1774749038505,-500.0,0.00011573,2]
[419010180,1774749038515,-500.0,0.00011573,2]
[419010182,1774749038637,-500.0,0.00011573,2]
[419010183,1774749038647,-166.66,0.000116,2]
[419010184,1774749038656,-2500.0,0.000116,4]
[419010185,1774749038666,-5000.0,0.000117,4]
[419010186,1774749038676,-545.4877014,0.00011717,2]
[419010187,1774749038685,-296.95644632,0.00011717,2]
[419010188,1774749038694,-211512.70237644,0.00011718,2]
[419010189,1774749038704,-1010.03678902,0.00011718,3]
[419010190,1774749038714,-442.28305486,0.00011736,2]
[419010191,1774749038723,-500.0,0.00011773,2]
[419010192,1774749038733,-738.16,0.00011786,2]
[419010193,1774749038742,-500.0,0.00011786,2]
[419010194,1774749038752,-609.0,0.00011789,2]
[419010195,1774749038762,-197.0,0.00011789,2]
[419010196,1774749038771,-7600.0,0.000118,4]
[419010197,1774749038781,-438.0,0.00011812,2]
[419010198,1774749038790,-11810.33968461,0.00011833,2]
[419010199,1774749038799,-1573.79533457,0.0001186,2]
[419010200,1774749038809,-158.0,0.0001186,2]
[419010201,1774749038819,-10100.0,0.000119,4]
[419010202,1774749038828,-166.66,0.00011971,2]
[419010203,1774749038837,-1000.0,0.00012021,2]
[419010204,1774749038847,-1000.0,0.00012021,2]
[419010205,1774749038856,-1000.0,0.00012021,2]
[419010206,1774749038866,-1000.0,0.00012021,2]
[419010207,1774749038875,-1000.0,0.00012021,2]
[419010208,1774749038886,-200.0,0.0001206,2]
[419010209,1774749038895,-738.16,0.0001206,2]
[419010210,1774749038905,-500.0,0.0001206,2]
[419010211,1774749038914,-2000.0,0.00012073,2]
[419010212,1774749038924,-150.0,0.00012103,2]
[419010213,1774749038933,-299.385653,0.00012104,2]
[419010214,1774749038943,-500.85720681,0.00012121,2]
[419010215,1774749038953,-196.66548329,0.00012121,2]
[419010216,1774749038963,-1047.14103911,0.00012121,2]
[419010217,1774749038972,-548.23558127,0.00012121,2]
[419010218,1774749038982,-1000.0,0.00012121,2]
[419010219,1774749038991,-500.0,0.00012219,2]
[419010220,1774749039000,-775.06862764,0.0001223,2]
[419010221,1774749039010,-775.06862764,0.0001223,2]
[419010222,1774749039019,-11810.33968461,0.00012252,2]
[419010223,1774749039029,-374.92,0.00012313,2]
[419010224,1774749039038,-1000.0,0.00012321,2]
[419010225,1774749039047,-500.0,0.00012334,2]
[419010226,1774749039057,-738.16,0.00012334,2]
[419010227,1774749039067,-166.66,0.00012341,2]
[419010228,1774749039076,-255.0,0.00012476,2]
[419010229,1774749039085,-420.0,0.00012532,2]
[419010230,1774749039094,-420.0,0.00012532,2]
[419010231,1774749039104,-420.0,0.00012532,2]
[419010232,1774749039113,-1680.0,0.0001255,2]
[419010233,1774749039122,-5000.0,0.00012551,2]
[419010234,1774749039131,-193.46705196,0.00012557,2]
[419010235,1774749039140,-197.02013038,0.00012557,2]
[419010236,1774749039150,-250.0,0.00012557,2]
[419010237,1774749039160,-5042.7968425,0.00012557,2]
[419010238,1774749039169,-1500.0,0.00012568,2]
[419010239,1774749039178,-742.64552133,0.00012568,2]
[419010240,1774749039187,-1500.0,0.00012568,2]
[419010241,1774749039196,-1500.0,0.00012568,2]
[419010242,1774749039205,-1500.0,0.00012568,2]
[419010243,1774749039215,-150.0,0.00012606,2]
[419010244,1774749039224,-1600.0,0.00012608,2]
[419010245,1774749039233,-500.0,0.00012608,2]
[419010246,1774749039242,-200.0,0.00012608,2]
[419010247,1774749039251,-738.16,0.00012608,2]
[419010248,1774749039261,-1500.0,0.00012668,2]
[419010249,1774749039270,-11810.33968461,0.0001267,2]
[419010250,1774749039280,-166.66,0.00012712,2]
[419010251,1774749039289,-500.0,0.00012712,2]
[419010252,1774749039298,-168.98,0.00012747,2]
[419010253,1774749039307,-586.1110983,0.00012824,2]
[419010254,1774749039316,-6053.4404014,0.00012824,2]
[419010255,1774749039327,-3576.4048144,0.00012824,2]
[419010256,1774749039336,-4298.3698949,0.00012824,2]
[419010257,1774749039345,-775.06862764,0.00012841,2]
[419010258,1774749039354,-775.06862764,0.00012841,2]
[419010259,1774749039363,-1002.61387031,0.00012868,2]
[419010260,1774749039372,-500.0,0.00012882,2]
[419010261,1774749039382,-738.16,0.00012882,2]
[419010262,1774749039391,-152.38150712,0.00012913,2]
[419010263,1774749039400,-250.0,0.00013,2]
[419010264,1774749039410,-166.66,0.00013083,2]
[419010265,1774749039419,-11810.33968461,0.00013088,2]
[419010266,1774749039428,-151.0,0.00013089,2]
[419010267,1774749039438,-151.0,0.00013089,2]
[419010268,1774749039447,-151.0,0.00013089,2]
[419010269,1774749039456,-150.4394,0.000131,2]
[419010270,1774749039466,-1143.5987133,0.00013116,2]
[419010271,1774749039476,-172.12760916,0.00013116,2]
[419010272,1774749039485,-2005.1887513,0.00013116,2]
[419010273,1774749039494,-2000.0,0.00013116,2]
[419010274,1774749039503,-500.0,0.00013156,2]
[419010275,1774749039513,-200.0,0.00013156,2]
[419010276,1774749039522,-738.16,0.00013156,2]
[419010277,1774749039532,-436.53,0.00013202,2]
[419010278,1774749039541,-2007.49383479,0.00013216,2]
[419010279,1774749039550,-1560.409501,0.00013217,2]
[419010280,1774749039560,-2573.7835722,0.00013327,2]
[419010281,1774749039570,-2941.7716079,0.00013327,2]
[419010282,1774749039579,-2000.0,0.00013415,2]
[419010283,1774749039588,-781.242232,0.00013424,2]
[419010284,1774749039598,-446.361651,0.00013424,2]
[419010285,1774749039608,-291.538629,0.00013424,2]
[419010286,1774749039619,-191.993476,0.00013424,2]
[419010287,1774749039630,-450.048461,0.00013424,2]
[419010288,1774749039639,-503.0,0.00013425,2]
[419010289,1774749039650,-250.0,0.0001343,2]
[419010290,1774749039659,-419.28508105,0.0001343,2]
[419010291,1774749039669,-738.16222207,0.0001343,2]
[419010292,1774749039679,-775.06862764,0.00013453,2]
[419010293,1774749039689,-338.728817,0.00013487,2]
[419010294,1774749039698,-699.173408,0.00013487,2]
[419010295,1774749039708,-472.958778,0.00013487,2]
[419010296,1774749039718,-186.046566,0.00013487,2]
[419010297,1774749039728,-11810.33968461,0.00013507,2]
[419010298,1774749039737,-433.0,0.0001364,2]
[419010299,1774749039747,-2505.96226832,0.00013664,2]
[419010300,1774749039756,-151.0,0.00013695,2]
[419010301,1774749039765,-500.0,0.00013698,2]
[419010302,1774749039774,-500.0,0.00013698,2]
[419010303,1774749039783,-500.0,0.00013698,2]
[419010305,1774749039793,-500.0,0.00013698,2]
[419010307,1774749039802,-500.0,0.00013698,2]
[419010309,1774749039811,-502.58215356,0.00013698,2]
[419010311,1774749039820,-500.0,0.00013698,2]
[419010313,1774749039830,-500.0,0.00013698,2]
[419010315,1774749039839,-500.0,0.00013698,2]
[419010317,1774749039848,-500.0,0.00013698,2]
[419010319,1774749039857,-313.06,0.00013698,2]
[419010320,1774749039867,-500.0,0.00013698,2]
[419010321,1774749039876,-500.0,0.00013698,2]
[419010322,1774749039886,-500.0,0.00013698,2]
[419010323,1774749039896,-401.01,0.00013698,2]
[419010324,1774749039905,-500.0,0.00013698,2]
[419010325,1774749039914,-500.0,0.00013698,2]
[419010326,1774749039924,-500.0,0.00013698,2]
[419010327,1774749039933,-500.0,0.00013698,2]
[419010328,1774749039942,-248.51,0.00013698,2]
[419010329,1774749039951,-500.0,0.00013698,2]
[419010330,1774749039960,-500.0,0.00013698,2]
[419010331,1774749039969,-568.20290166,0.00013698,2]
[419010332,1774749039978,-500.0,0.00013698,2]
[419010333,1774749039988,-500.0,0.00013698,2]
[419010334,1774749039997,-500.0,0.00013698,2]
[419010335,1774749040006,-500.0,0.00013698,2]
[419010336,1774749040016,-500.0,0.00013698,2]
[419010337,1774749040025,-500.0,0.00013698,2]
[419010338,1774749040034,-500.0,0.00013698,2]
[419010339,1774749040043,-500.0,0.00013698,2]
[419010340,1774749040052,-500.0,0.00013698,2]
[419010341,1774749040061,-500.0,0.00013698,2]
[419010342,1774749040071,-500.0,0.00013698,2]
[419010343,1774749040079,-500.0,0.00013698,2]
[419010344,1774749040088,-523.58294585,0.00013698,2]
[419010345,1774749040097,-500.0,0.00013698,2]
[419010346,1774749040106,-520.05308427,0.00013698,2]
[419010347,1774749040115,-500.0,0.00013698,2]
[419010348,1774749040124,-507.74203298,0.00013698,2]
[419010349,1774749040133,-580.62432508,0.00013698,2]
[419010350,1774749040142,-500.0,0.00013698,2]
[419010351,1774749040151,-504.61807419,0.00013698,2]
[419010352,1774749040160,-500.0,0.00013698,2]
[419010353,1774749040171,-505.93653105,0.00013698,2]
[419010354,1774749040180,-389.61112945,0.00013698,2]
[419010355,1774749040190,-500.0,0.00013698,2]
[419010356,1774749040199,-525.7277167,0.00013698,2]
[419010359,1774749040208,-500.0,0.00013698,2]
[419010361,1774749040218,-182.39062743,0.00013698,2]
[419010362,1774749040228,-631.42723728,0.00013698,2]
[419010363,1774749040237,-500.0,0.00013698,2]
[419010365,1774749040246,-500.0,0.00013698,2]
[419010366,1774749040256,-500.0,0.00013698,2]
[419010367,1774749040265,-500.0,0.00013698,2]
[419010368,1774749040275,-587.57676003,0.00013698,2]
[419010369,1774749040284,-150.0,0.00013699,2]
[419010370,1774749040294,-150.0,0.00013699,2]
[419010371,1774749040303,-150.0,0.00013699,2]
[419010372,1774749040312,-150.0,0.00013699,2]
[419010373,1774749040321,-150.0,0.00013699,2]
[419010374,1774749040331,-1324.0,0.00013699,2]
[419010375,1774749040340,-200.0,0.00013699,2]
[419010376,1774749040350,-371.26,0.00013699,2]
[419010377,1774749040359,-164.64289673,0.00013699,2]
[419010378,1774749040369,-165.20736909,0.00013699,2]
[419010379,1774749040378,-500.0,0.00013699,2]
[419010380,1774749040388,-500.61251814,0.00013699,2]
[419010381,1774749040398,-500.0,0.00013699,2]
[419010382,1774749040407,-500.0,0.00013699,2]
[419010383,1774749040417,-500.0,0.00013699,2]
[419010384,1774749040426,-500.0,0.00013699,2]
[419010385,1774749040435,-500.0,0.00013699,2]
[419010386,1774749040445,-303.4827321,0.00013699,2]
[419010387,1774749040454,-161.75757125,0.00013699,2]
[419010388,1774749040463,-500.0,0.00013699,2]
[419010389,1774749040472,-337.48789903,0.00013699,2]
[419010390,1774749040482,-163.45026092,0.00013699,2]
[419010391,1774749040491,-500.0,0.00013699,2]
[419010392,1774749040501,-501.64028841,0.00013699,2]
[419010393,1774749040511,-500.0,0.00013699,2]
[419010394,1774749040520,-500.0,0.00013699,2]
[419010395,1774749040530,-500.79006539,0.00013699,2]
[419010396,1774749040539,-500.0,0.00013699,2]
[419010397,1774749040548,-500.0,0.00013699,2]
[419010398,1774749040558,-500.0,0.00013699,2]
[419010399,1774749040568,-500.0,0.00013699,2]
[419010400,1774749040578,-160.27279954,0.00013699,2]
[419010401,1774749040587,-518.51040499,0.00013699,2]
[419010402,1774749040596,-500.11753077,0.00013699,2]
[419010403,1774749040606,-501.05408276,0.00013699,2]
[419010404,1774749040616,-500.0,0.00013699,2]
[419010405,1774749040625,-500.0,0.00013699,2]
[419010406,1774749040635,-500.0,0.00013699,2]
[419010407,1774749040644,-500.79800767,0.00013699,2]
[419010408,1774749040654,-254.72596748,0.00013699,2]
[419010409,1774749040664,-626.33,0.000137,2]
[419010410,1774749040674,-956.17,0.000137,2]
[419010411,1774749040759,-150.04637068,0.000137,2]
[419010412,1774749040780,-150.0,0.000137,2]
[419010413,1774749040790,-503.557746,0.000137,2]
[419010414,1774749040799,-503.557746,0.000137,2]
[419010415,1774749040809,-503.557746,0.000137,2]
[419010416,1774749040819,-503.557746,0.000137,2]
[419010417,1774749040829,-217.84187082,0.000137,2]
[419010418,1774749040839,-2066.29,0.000137,2]
[419010419,1774749040848,-2066.29,0.000137,2]
[419010420,1774749040858,-2066.29,0.000137,2]
[419010421,1774749040867,-2066.29,0.000137,2]
[419010422,1774749040876,-2066.29,0.000137,2]
[419010423,1774749040886,-280.69815397,0.00013704,2]
[419010424,1774749040897,-574.2887406,0.00013731,2]
[419010425,1774749040907,-656.39797,0.00013731,2]
[419010426,1774749040917,-151.0,0.00013759,2]
[419010427,1774749040927,-156.494,0.00013761,2]
[419010428,1774749040937,-67860.2574143,0.00013762,2]
[419010429,1774749040947,-151.0,0.00013762,2]
[419010430,1774749040956,-151.0,0.00013762,2]
[419010431,1774749040966,-151.0,0.00013762,2]
[419010432,1774749040976,-340.0,0.00013766,2]
[419010433,1774749040986,-587.0,0.00013766,2]
[419010434,1774749040995,-500.0,0.00013773,2]
[419010435,1774749041005,-500.0,0.00013773,2]
[419010436,1774749041015,-500.0,0.00013773,2]
[419010437,1774749041024,-500.0,0.00013773,2]
[419010438,1774749041034,-2351.0,0.00013805,2]
[419010439,1774749041043,-503.557746,0.00013812,2]
[419010440,1774749041053,-503.557746,0.00013812,2]
[419010441,1774749041062,-503.557746,0.00013812,2]
[419010442,1774749041072,-503.557746,0.00013812,2]
[419010443,1774749041082,-2899.0,0.00013822,5]
[419010444,1774749041091,-2905.0,0.00013822,5]
[419010445,1774749041101,-419.82,0.00013832,2]
[419010446,1774749041110,-419.81,0.00013917,2]
[419010447,1774749041120,-11810.33968461,0.00013925,2]
[419010448,1774749041129,-64911.4523593,0.00013962,2]
[419010449,1774749041139,-150.0,0.00013973,2]
[419010450,1774749041149,-150.0,0.00013973,2]
[419010451,1774749041158,-150.0,0.00013973,2]
[419010452,1774749041168,-150.0,0.00013973,2]
[419010453,1774749041177,-150.0,0.00013973,2]
[419010454,1774749041186,-4731.0,0.00013982,2]
[419010455,1774749041196,-514.0,0.00014,2]
[419010456,1774749041206,-513.0,0.00014,2]
[419010457,1774749041215,-872.0709265,0.00014006,2]
[419010458,1774749041225,-1000.0,0.00014128,2]
[419010459,1774749041235,-1000.0,0.00014128,2]
[419010460,1774749041244,-1000.0,0.00014128,2]
[419010461,1774749041254,-1000.0,0.00014128,2]
[419010462,1774749041264,-1000.0,0.00014128,2]
[419010463,1774749041273,-1000.0,0.00014128,2]
[419010464,1774749041284,-1000.0,0.00014128,2]
[419010465,1774749041293,-1000.0,0.00014128,2]
[419010466,1774749041302,-1000.0,0.00014128,2]
[419010467,1774749041312,-1000.0,0.00014128,2]
[419010468,1774749041322,-766.149,0.00014128,2]
[419010469,1774749041332,-586.1110983,0.00014128,2]
[419010470,1774749041341,-6053.4404014,0.00014128,2]
[419010471,1774749041351,-3576.4048144,0.00014128,2]
[419010472,1774749041360,-4298.3698949,0.00014128,2]
[419010473,1774749041370,-168.16,0.00014135,2]
[419010474,1774749041379,-168.16,0.00014135,2]
[419010475,1774749041390,-9552.16786547,0.00014169,2]
[419010476,1774749041400,-500.0,0.00014169,2]
[419010477,1774749041409,-151.0,0.00014169,2]
[419010478,1774749041419,-187.28708856,0.00014169,2]
[419010479,1774749041429,-262.90206542,0.00014169,2]
[419010480,1774749041439,-374.92,0.00014176,2]
[419010481,1774749041449,-1600.0,0.00014184,2]
[419010482,1774749041459,-9905.5980765,0.00014224,2]
[419010483,1774749041469,-500.0,0.00014224,2]
[419010484,1774749041480,-151.0,0.00014224,2]
[419010485,1774749041490,-272.62944185,0.00014224,2]
[419010486,1774749041499,-150.0,0.00014247,2]
[419010487,1774749041509,-150.0,0.00014247,2]
[419010488,1774749041518,-150.0,0.00014247,2]
[419010489,1774749041528,-1000.0,0.00014247,2]
[419010490,1774749041538,-1000.0,0.00014247,2]
[419010491,1774749041547,-1000.0,0.00014247,2]
[419010492,1774749041556,-1000.0,0.00014247,2]
[419010493,1774749041566,-1000.0,0.00014247,2]
[419010494,1774749041576,-1000.0,0.00014247,2]
[419010495,1774749041586,-184.37970889,0.00014247,2]
[419010496,1774749041596,-1000.0,0.00014247,2]
[419010497,1774749041605,-1000.0,0.00014247,2]
[419010498,1774749041615,-1000.0,0.00014247,2]
[419010499,1774749041625,-1000.0,0.00014247,2]
[419010500,1774749041636,-1000.0,0.00014247,2]
[419010501,1774749041646,-1000.77161479,0.00014247,2]
[419010502,1774749041656,-507.95072429,0.00014247,2]
[419010503,1774749041666,-502.27060351,0.00014247,2]
[419010504,1774749041676,-1000.0,0.00014247,2]
[419010505,1774749041686,-1001.84409587,0.00014247,2]
[419010506,1774749041696,-10272.10520533,0.00014279,2]
[419010507,1774749041706,-500.0,0.00014279,2]
[419010508,1774749041716,-151.0,0.00014279,2]
[419010509,1774749041727,-282.71673119,0.00014279,2]
[419010510,1774749041736,-435.72952833,0.00014321,2]
[419010511,1774749041746,-679.35577738,0.00014321,2]
[419010512,1774749041755,-1001.92036949,0.00014321,2]
[419010513,1774749041765,-1000.0,0.00014321,2]
[419010514,1774749041774,-2000.0,0.00014321,2]
[419010515,1774749041784,-200.0,0.00014321,2]
[419010516,1774749041793,-200.0,0.00014321,2]
[419010517,1774749041803,-10652.17309792,0.00014334,2]
[419010518,1774749041812,-500.0,0.00014334,2]
[419010519,1774749041822,-151.0,0.00014334,2]
[419010520,1774749041832,-293.17725025,0.00014334,2]
[419010521,1774749041842,-11810.33968461,0.00014343,2]
[419010522,1774749041851,-162.64,0.00014349,2]
[419010523,1774749041861,-1324.0,0.00014384,2]
[419010524,1774749041871,-11046.30350255,0.00014389,2]
[419010525,1774749041880,-500.0,0.00014389,2]
[419010526,1774749041891,-151.0,0.00014389,2]
[419010527,1774749041901,-304.02480851,0.00014389,2]
[419010528,1774749041911,-152.38150712,0.00014406,2]
[419010529,1774749041921,-301.27465414,0.00014434,2]
[419010530,1774749041930,-500.0,0.00014444,2]
[419010531,1774749041940,-11455.01673214,0.00014444,2]
[419010532,1774749041949,-151.0,0.00014444,2]
[419010533,1774749041958,-335.87964325,0.00014444,2]
[419010534,1774749041967,-200.0,0.00014464,2]
[419010535,1774749041976,-11878.85235123,0.00014499,2]
[419010536,1774749041986,-500.0,0.00014499,2]
[419010537,1774749041996,-151.0,0.00014499,2]
[419010538,1774749042006,-1116.7319,0.00014504,2]
[419010539,1774749042015,-14483.7027604,0.00014508,2]
[419010540,1774749042025,-2601.6412518,0.00014554,2]
[419010541,1774749042034,-500.0,0.00014554,2]
[419010542,1774749042044,-151.0,0.00014554,2]
[419010543,1774749042054,-165.46185865,0.00014577,2]
[419010544,1774749042063,-249.30028017,0.00014577,2]
[419010545,1774749042073,-200.0,0.00014609,2]
[419010546,1774749042083,-500.0,0.00014609,2]
[419010547,1774749042092,-151.0,0.00014609,2]
[419010548,1774749042102,-500.0,0.00014664,2]
[419010549,1774749042111,-292.24092278,0.00014664,2]
[419010550,1774749042121,-500.0,0.00014719,2]
[419010551,1774749042130,-200.0,0.00014755,2]
[419010552,1774749042140,-2000.0,0.00014756,2]
[419010553,1774749042149,-11810.33968461,0.00014762,2]
[419010554,1774749042159,-1008.27174746,0.00014795,2]
[419010555,1774749042169,-831.30897363,0.00014795,2]
[419010556,1774749042178,-1500.0,0.00014795,2]
[419010557,1774749042188,-398.26521729,0.00014795,2]
[419010558,1774749042198,-1500.0,0.00014795,2]
[419010559,1774749042208,-689.23658373,0.00014795,2]
[419010560,1774749042218,-1506.69665777,0.00014795,2]
[419010561,1774749042227,-580.42962611,0.00014795,2]
[419010562,1774749042237,-1500.0,0.00014795,2]
[419010563,1774749042246,-1076.69688643,0.00014795,2]
[419010564,1774749042256,-1500.0,0.00014795,2]
[419010565,1774749042266,-1500.0,0.00014795,2]
[419010566,1774749042276,-150.8801,0.000148,2]
[419010567,1774749042286,-910.63975449,0.00014868,2]
[419010568,1774749042295,-344.33775965,0.000149,2]
[419010569,1774749042306,-200.0,0.00014902,2]
[419010570,1774749042315,-736.0,0.00014907,2]
[419010571,1774749042325,-294.8,0.0001491,14]
[419010572,1774749042336,-2720.11,0.00014963,2]
[419010573,1774749042346,-162.64,0.00014973,2]
[419010574,1774749042355,-314.26,0.0001498,2]
[419010575,1774749042365,-160.0,0.00014994,2]
[419010576,1774749042374,-160.0,0.00014994,2]
[419010577,1774749042384,-959.64475997,0.00014994,2]
[419010578,1774749042394,-300.0,0.00015,2]
[419010579,1774749042403,-157.13,0.00015067,2]
[419010580,1774749042413,-342.35,0.00015068,2]
[419010581,1774749042422,-1324.0,0.00015068,2]
[419010582,1774749042432,-697.0,0.00015121,2]
[419010583,1774749042442,-1137.0,0.00015121,2]
[419010584,1774749042451,-823.0,0.00015121,2]
[419010585,1774749042461,-374.92,0.00015135,2]
[419010586,1774749042471,-155.0,0.00015137,2]
[419010587,1774749042481,-11810.33968461,0.0001518,2]
[419010588,1774749042491,-3292.0,0.00015185,2]
[419010589,1774749042500,-1300.37,0.00015205,2]
[419010590,1774749042509,-1375.0,0.00015263,2]
[419010591,1774749042519,-500.0,0.00015271,2]
[419010592,1774749042529,-500.0,0.00015271,2]
[419010593,1774749042539,-500.0,0.00015271,2]
[419010594,1774749042548,-156.35128686,0.00015271,2]
[419010595,1774749042558,-500.0,0.00015271,2]
[419010596,1774749042567,-500.0,0.00015271,2]
[419010597,1774749042576,-327.14015113,0.00015271,2]
[419010598,1774749042586,-500.0,0.00015271,2]
[419010599,1774749042595,-500.0,0.00015271,2]
[419010600,1774749042605,-500.0,0.00015271,2]
[419010601,1774749042615,-500.0,0.00015271,2]
[419010602,1774749042625,-500.0,0.00015271,2]
[419010603,1774749042635,-500.0,0.00015271,2]
[419010604,1774749042644,-500.0,0.00015271,2]
[419010605,1774749042654,-500.0,0.00015271,2]
[419010606,1774749042663,-500.0,0.00015271,2]
[419010607,1774749042673,-500.0,0.00015271,2]
[419010608,1774749042683,-500.0,0.00015271,2]
[419010609,1774749042692,-500.0,0.00015271,2]
[419010610,1774749042702,-500.0,0.00015271,2]
[419010611,1774749042789,-500.0,0.00015271,2]
[419010612,1774749042810,-500.0,0.00015271,2]
[419010613,1774749042820,-500.0,0.00015271,2]
[419010614,1774749042830,-150.0,0.00015271,2]
[419010615,1774749042839,-500.0,0.00015271,2]
[419010616,1774749042849,-521.46914168,0.00015271,2]
[419010617,1774749042859,-353.36335448,0.00015271,2]
[419010618,1774749042869,-206.13980161,0.00015271,2]
[419010619,1774749042878,-207.71494983,0.00015271,2]
[419010620,1774749042888,-500.0,0.00015274,2]
[419010621,1774749042897,-500.0,0.00015274,2]
[419010622,1774749042907,-500.0,0.00015274,2]
[419010623,1774749042916,-500.0,0.00015274,2]
[419010624,1774749042926,-500.0,0.00015274,2]
[419010625,1774749042936,-500.0,0.00015274,2]
[419010626,1774749042945,-500.0,0.00015274,2]
[419010627,1774749042955,-500.0,0.00015274,2]
[419010628,1774749042965,-500.0,0.00015274,2]
[419010629,1774749042975,-500.0,0.00015274,2]
[419010630,1774749042984,-150.0,0.00015274,2]
[419010631,1774749042994,-500.0,0.00015274,2]
[419010632,1774749043003,-630.59484516,0.00015274,2]
[419010633,1774749043013,-154.31995128,0.00015274,2]
[419010634,1774749043023,-500.0,0.00015274,2]